bitfinex/quotes_ETHUSD_20260314
["timestamp","ask_amount","ask_price","bid_price","bid_amount"]
[1773470305910,6.49944999,2076.1,2075.2,10.145044]
[1773470306110,6.49944999,2076.1,2075.2,4.310445]
[1773470306275,6.49944999,2076.1,2075.1,4.8188464]
[1773470306608,6.49944999,2075.9,2075.1,4.8188464]
[1773470306974,6.49944999,2075.9,2075.0,0.08238636]
[1773470307173,6.49944999,2075.9,2075.0,1.28716329]
[1773470307372,11.14041799,2075.9,2075.0,1.28716329]
[1773470308022,6.49944999,2075.8,2075.0,1.28716329]
[1773470308226,6.49944999,2075.8,2074.9,4.8192771]
[1773470308395,6.49944999,2075.8,2075.0,1.20477693]
[1773470308597,2.75,2076.1,2075.3,2.033353]
[1773470308598,6.49944999,2076.1,2075.3,2.033353]
[1773470308799,6.49944999,2076.1,2075.4,0.04818348]
[1773470309034,6.49944999,2076.1,2075.5,1.704]
[1773470309207,6.49944999,2076.1,2075.0,3.10630779]
[1773470309208,6.49944999,2076.4,2075.0,1.27031293]
[1773470309397,6.49944999,2076.4,2075.1,2.674359]
[1773470309601,6.49944999,2076.4,2075.2,0.04818812]
[1773470309797,6.49944999,2076.4,2075.4,1.20458706]
[1773470310430,6.49944999,2076.4,2075.0,1.20481927]
[1773470310734,6.49944999,2076.4,2075.1,0.04929044]
[1773470311024,7.70349905,2076.4,2075.1,1.7181]
[1773470311225,7.7035081,2076.4,2075.1,1.76629044]
[1773470311528,7.7035081,2076.4,2075.1,1.717]
[1773470311731,7.7035081,2076.4,2075.1,1.76629044]
[1773470312028,7.7035081,2076.4,2075.4,28.900799]
[1773470312029,6.49944999,2076.4,2075.4,28.900799]
[1773470312217,6.49944999,2076.4,2075.3,0.0011]
[1773470312536,6.49944999,2076.4,2075.4,29.864599]
[1773470312835,6.5,2076.2,2075.2,1.20580316]
[1773470313213,6.5,2076.2,2075.3,3.320016]
[1773470314331,6.5,2076.2,2075.4,1.20458706]
[1773470314628,1.16097644,2076.1,2075.4,1.20458706]
[1773470315629,1.16097644,2076.1,2075.5,1.738]
[1773470316331,1.20907648,2076.1,2075.6,1.20447099]
[1773470316644,7.70907648,2076.1,2075.6,1.20447099]
[1773470318336,7.70907648,2076.1,2075.2,0.0011]
[1773470319031,6.5,2076.0,2075.2,0.0011]
[1773470319201,0.04810004,2075.9,2075.2,0.0011]
[1773470319532,6.5,2075.7,2075.0,0.0011]
[1773470320230,6.5,2076.0,2075.0,0.0011]
[1773470320528,6.54810004,2076.0,2075.0,0.0011]
[1773470321024,6.54810004,2076.0,2075.1,1.753]
[1773470321197,7.75234153,2076.0,2075.0,0.0011]
[1773470321414,7.75234153,2076.0,2075.1,1.754]
[1773470322001,6.54810004,2076.0,2075.0,0.0011]
[1773470322325,6.5,2075.8,2075.0,0.0011]
[1773470322830,6.5,2075.8,2075.0,0.04929277]
[1773470323035,5.5,2075.8,2075.0,0.0011]
[1773470323630,5.5,2075.8,2075.0,2.80729277]
[1773470323813,5.5,2075.8,2075.0,2.7591]
[1773470324333,0.04810004,2076.0,2075.2,1.20470316]
[1773470324505,0.04810004,2076.0,2075.2,1.20580316]
[1773470324699,6.06131934,2076.0,2075.2,1.20580316]
[1773470325731,6.06131934,2076.0,2075.1,4.81881264]
[1773470325932,6.06131934,2076.0,2075.2,1.20470316]
[1773470326446,6.0132193,2075.9,2075.2,0.04818812]
[1773470326640,0.04810004,2075.8,2075.1,0.97356138]
[1773470328337,2.36519506,2076.1,2075.3,1.20464511]
[1773470328338,1.20907648,2076.1,2075.3,1.20464511]
[1773470328842,7.66950761,2076.1,2075.3,1.20464511]
[1773470329038,8.87368857,2076.1,2075.3,1.20464511]
[1773470329221,6.46043113,2076.0,2075.3,1.20464511]
[1773470329412,6.50853117,2075.9,2075.3,2.96864511]
[1773470329613,6.50853117,2075.9,2075.2,4.81858044]
[1773470329813,6.46043113,2075.9,2075.3,1.25283091]
[1773470330139,6.50853117,2075.9,2075.3,1.25283091]
[1773470330352,6.50853117,2075.8,2075.3,1.20464511]
[1773470330847,1.16097644,2076.1,2075.4,1.02174486]
[1773470331048,1.16097644,2076.1,2075.5,1.90153086]
[1773470331349,7.49657989,2076.1,2075.5,8.340025]
[1773470331919,1.16097644,2076.1,2075.5,8.340025]
[1773470332145,1.16097644,2076.1,2075.4,0.97356138]
[1773470332451,1.16097644,2076.1,2075.5,0.97356138]
[1773470332618,1.16097644,2076.1,2075.6,0.04817883]
[1773470333020,1.16097644,2076.1,2075.7,1.20441296]
[1773470334521,1.16097644,2076.1,2075.7,1.25258947]
[1773470334722,1.16097644,2076.1,2075.7,1.20441296]
[1773470335032,7.49657989,2076.1,2075.7,1.20441296]
[1773470335733,1.16097644,2076.1,2075.3,2.17820649]
[1773470335945,6.33560345,2076.0,2075.1,1.767]
[1773470336254,6.33560345,2075.6,2074.6,4.82017163]
[1773470336457,5.057,2075.5,2074.6,1.20501387]
[1773470336657,6.33560345,2075.4,2074.7,0.04819973]
[1773470336863,6.33560345,2075.4,2074.6,1.20501387]
[1773470337032,7.5402027,2075.4,2075.1,0.0011]
[1773470338247,6.33560345,2075.2,2074.5,1.27680403]
[1773470338446,6.33560345,2075.1,2074.1,20.48249138]
[1773470338674,6.33560345,2075.1,2074.3,9.994872]
[1773470338874,6.33560345,2075.1,2074.1,4.64209224]
[1773470339183,6.33560345,2075.1,2074.3,1.10522585]
[1773470339375,6.33560345,2075.1,2074.4,0.02411497]
[1773470340197,6.33560345,2075.6,2074.8,2.74056138]
[1773470340347,9.08660345,2075.9,2075.0,7.263174]
[1773470340551,0.06021774,2075.8,2075.1,0.02407199]
[1773470340790,6.39582119,2075.8,2075.0,5.60961]
[1773470341088,0.001,2075.9,2075.2,12.566966]
[1773470341248,0.001,2075.9,2075.2,10.373586]
[1773470341450,0.001,2075.9,2075.3,0.0022]
[1773470341887,0.001,2075.9,2075.4,0.0022]
[1773470342081,0.001,2075.9,2075.4,0.02405923]
[1773470342254,0.001,2075.9,2075.1,3.94532259]
[1773470342449,0.001,2075.9,2075.3,1.90153086]
[1773470342791,0.001,2075.9,2075.3,4.64209224]
[1773470343096,0.001,2075.9,2075.6,0.0022]
[1773470343255,0.001,2075.9,2075.5,0.02405342]
[1773470343455,0.001,2075.9,2075.7,0.0022]
[1773470343656,0.001,2075.9,2075.5,0.02405342]
[1773470343855,1.16097644,2076.1,2075.8,0.0022]
[1773470344188,1.16097644,2076.1,2075.5,1.76]
[1773470344486,1.16097644,2076.1,2075.8,0.0022]
[1773470344856,1.16097644,2076.1,2075.5,4.49956138]
[1773470344857,1.16097644,2076.1,2075.9,0.0022]
[1773470345094,1.16097644,2076.1,2075.5,4.49956138]
[1773470345290,1.16097644,2076.1,2075.6,1.20447099]
[1773470345998,1.16097644,2076.1,2075.8,0.0022]
[1773470346381,1.16097644,2076.1,2075.9,0.0022]
[1773470346683,1.16097644,2076.1,2075.6,1.22851164]
[1773470347085,0.001,2076.2,2075.6,1.22851164]
[1773470347268,0.001,2076.2,2075.6,1.20447099]
[1773470347468,0.001,2076.2,2075.7,0.0022]
[1773470347899,0.001,2076.2,2075.6,1.20447099]
[1773470348074,0.001,2076.2,2075.8,0.0022]
[1773470348395,0.001,2076.2,2075.6,1.20447099]
[1773470348575,0.001,2076.2,2075.6,1.22851164]
[1773470348774,6.29680379,2076.5,2075.6,1.22851164]
[1773470348975,6.29680379,2076.5,2075.7,1.90153086]
[1773470349187,6.37179097,2076.8,2075.9,1.20429693]
[1773470349587,7.57557167,2076.8,2075.9,1.20429693]
[1773470350071,0.001,2075.9,2075.5,1.20558485]
[1773470350471,0.001,2075.9,2075.6,0.0022]
[1773470351403,6.33660345,2075.9,2075.5,0.04818116]
[1773470352393,0.001,2075.9,2075.5,0.04818116]
[1773470352910,0.001,2075.9,2075.4,1.20458276]
[1773470353314,0.001,2075.9,2075.3,4.81944827]
[1773470353493,0.001,2075.9,2075.4,5.63847]
[1773470353981,6.33560345,2075.7,2075.0,1.20586121]
[1773470354179,0.001,2075.9,2075.1,4.81881264]
[1773470354180,6.33660345,2075.9,2075.1,4.81881264]
[1773470354381,6.33560345,2075.7,2075.0,0.0011]
[1773470354582,6.33560345,2075.7,2074.6,1.20505157]
[1773470355301,1.20447099,2075.6,2074.6,1.20505157]
[1773470355508,6.33560345,2075.5,2074.6,1.20505157]
[1773470357786,6.33560345,2075.3,2074.4,4.8202063]
[1773470358596,6.33560345,2075.3,2074.4,1.20516775]
[1773470359416,6.33560345,2075.1,2074.4,1.20516775]
[1773470360022,6.33560345,2074.9,2074.4,1.20516775]
[1773470360207,6.33560345,2074.9,2074.3,3.55450823]
[1773470360730,6.33560345,2074.9,2074.4,0.03613994]
[1773470361045,7.54024856,2075.3,2074.3,1.8014949]
[1773470362715,7.54024856,2075.3,2074.5,0.0011]
[1773470363212,7.54124856,2075.3,2074.5,0.0011]
[1773470364439,7.60148081,2075.3,2074.5,0.0011]
[1773470366235,7.60148081,2075.3,2074.5,0.03722601]
[1773470366539,7.60148081,2075.3,2074.5,1.20616526]
[1773470367616,7.60148081,2075.3,2074.6,0.03612427]
[1773470367816,7.60148081,2075.3,2074.5,1.20616526]
[1773470368152,0.001,2075.3,2074.6,22.86945602]
[1773470368326,0.001,2075.3,2074.7,4.20197024]
[1773470368510,7.35750052,2075.8,2074.8,3.03309347]
[1773470368511,8.7004905,2075.8,2074.8,3.03309347]
[1773470368834,0.06022064,2075.7,2074.8,2.99697675]
[1773470369024,0.06022064,2075.7,2074.8,3.0330833]
[1773470369224,6.16042102,2075.8,2075.0,2.99597675]
[1773470370219,0.001,2075.9,2075.1,2.99597675]
[1773470370544,0.001,2075.9,2075.2,1.20470316]
[1773470370740,0.001,2075.9,2075.2,4.20067991]
[1773470372035,0.001,2075.9,2075.2,1.20470316]
[1773470374743,6.16142102,2075.9,2075.2,1.20470316]
[1773470376020,0.001,2075.9,2075.2,4.24380521]
[1773470376217,0.001,2075.9,2075.4,3.00301465]
[1773470376420,6.16042102,2076.2,2075.4,3.00301465]
[1773470376625,0.001,2075.7,2075.4,3.00301465]
[1773470376847,6.16042102,2076.2,2075.4,3.00301465]
[1773470377052,6.16042102,2076.2,2075.5,1.20452902]
[1773470377232,6.16042102,2076.2,2075.5,4.16822623]
[1773470377430,6.16042102,2076.2,2075.5,1.20452902]
[1773470377632,6.16042102,2076.0,2075.5,1.20452902]
[1773470378255,1.26432096,2076.3,2075.5,1.20452902]
[1773470378256,6.22062426,2076.3,2075.5,1.20452902]
[1773470379328,6.22062426,2076.3,2075.5,4.20429418]
[1773470380331,6.22062426,2076.3,2075.6,2.96369721]
[1773470380647,6.22062426,2076.3,2075.5,2.97152902]
[1773470382051,6.16042102,2076.3,2075.6,2.99976343]
[1773470382259,6.16042102,2076.6,2075.6,2.96369721]
[1773470382438,0.06019744,2076.5,2075.6,2.96369721]
[1773470382628,6.22061846,2076.5,2075.6,2.96369721]
[1773470384358,6.22061846,2076.5,2075.7,1.20441296]
[1773470384652,6.22061846,2076.5,2075.7,4.16210161]
[1773470384856,6.22061846,2076.5,2075.8,2.95768865]
[1773470386655,6.22061846,2076.5,2075.9,1.20429693]
[1773470388041,0.06019744,2076.5,2075.9,4.16198558]
[1773470388364,5.95463176,2076.5,2075.5,2.97148378]
[1773470388667,5.95463176,2076.3,2075.5,2.97148378]
[1773470388848,6.0148379,2076.2,2075.5,2.97148378]
[1773470389362,5.95463176,2076.2,2075.6,0.03606825]
[1773470389562,0.001,2076.3,2075.6,2.9937569]
[1773470390467,0.001,2076.3,2075.6,2.95768865]
[1773470391353,6.49901322,2076.3,2075.7,1.20441296]
[1773470391545,6.55821936,2076.2,2075.7,1.20441296]
[1773470392268,6.55821936,2076.2,2075.4,9.54312058]
[1773470392269,6.55821936,2076.2,2075.4,0.0011]
[1773470392472,6.55821936,2076.2,2075.4,1.20567449]
[1773470393859,6.49801322,2076.0,2075.4,0.0011]
[1773470395661,7.70236816,2075.8,2075.4,0.0011]
[1773470395862,7.70236816,2075.8,2075.1,2.96282648]
[1773470396057,6.49801322,2075.8,2075.1,2.96282648]
[1773470396459,6.49801322,2075.8,2075.1,5.92161513]
[1773470397268,6.49801322,2076.0,2075.2,2.95878865]
[1773470397804,6.49801322,2076.0,2075.3,1.20464511]
[1773470397937,7.70225489,2076.0,2075.3,4.16343376]
[1773470399263,6.49801322,2075.8,2075.1,1.2058384]
[1773470400045,7.70242618,2075.7,2075.1,1.2058384]
[1773470400862,6.49801322,2075.7,2075.1,1.2058384]
[1773470401077,0.001,2076.3,2075.2,6.07596084]
[1773470401384,0.001,2076.3,2075.4,6.07596084]
[1773470401385,1.26527814,2076.3,2075.4,6.07596084]
[1773470401582,0.06040324,2076.3,2075.6,6.07596084]
[1773470401786,7.70229987,2076.3,2075.6,6.07596084]
[1773470401962,7.76250311,2076.3,2075.1,0.0011]
[1773470402156,7.76250311,2076.3,2075.2,6.07596084]
[1773470402810,7.76250311,2076.3,2075.1,0.0011]
[1773470402811,6.49801322,2076.1,2075.1,0.0011]
[1773470403071,1.90661847,2076.2,2075.1,0.0011]
[1773470403072,6.49801322,2075.9,2075.1,6.07706084]
[1773470403854,1.20428665,2076.3,2075.3,6.07596084]
[1773470403855,6.49821322,2076.3,2075.3,6.07596084]
[1773470404174,7.73324558,2078.0,2075.8,6.07596084]
[1773470404175,6.49801322,2076.8,2075.8,6.07596084]
[1773470404475,6.49801322,2077.1,2076.2,6.07596084]
[1773470404677,0.06018295,2077.0,2076.2,6.07596084]
[1773470406182,6.55819327,2077.1,2076.3,7.28002576]
[1773470406473,6.49801322,2077.1,2076.3,7.28002576]
[1773470406877,0.06017716,2077.2,2076.5,6.07596084]
[1773470407174,6.49801322,2077.7,2076.6,6.07596084]
[1773470407175,7.76154367,2077.6,2076.6,6.07596084]
[1773470407574,7.76154367,2077.6,2076.4,1.763]
[1773470407949,7.76154367,2077.6,2076.4,7.83896084]
[1773470408370,7.76154367,2077.6,2076.5,7.27990979]
[1773470409360,7.7013781,2077.6,2076.5,7.27990979]
[1773470410252,7.76154367,2077.6,2076.5,7.27990979]
[1773470410452,7.7615368,2077.6,2076.5,7.27990979]
[1773470410791,7.70137123,2077.6,2076.5,7.27990979]
[1773470411769,6.55818169,2077.5,2076.5,7.27990979]
[1773470411969,6.55818169,2077.5,2076.6,7.83996084]
[1773470412258,6.55818169,2077.5,2076.7,6.07596084]
[1773470412477,6.49801322,2077.5,2076.8,7.27973587]
[1773470412682,1.20327541,2077.7,2076.8,7.27973587]
[1773470413056,1.51869281,2078.0,2077.1,30.0]
[1773470413272,1.51869281,2078.0,2077.2,6.07596084]
[1773470413273,0.06015688,2077.9,2077.2,6.07596084]
[1773470414483,6.49801322,2077.7,2076.9,6.07596084]
[1773470414783,0.06016557,2077.6,2076.9,9.04366649]
[1773470415660,6.49801322,2077.7,2076.9,9.04366649]
[1773470415981,1.20316556,2077.9,2077.0,6.07596084]
[1773470416181,0.06015978,2077.8,2077.0,6.07596084]
[1773470416995,0.06015978,2077.8,2077.1,7.27956201]
[1773470417186,8.07690132,2078.0,2077.1,7.27956201]
[1773470417389,0.31560698,2078.0,2077.3,6.07596084]
[1773470417584,0.06015109,2078.1,2077.3,6.07596084]
[1773470418093,0.0601482,2078.2,2077.3,6.07596084]
[1773470418895,0.001,2078.3,2077.7,6.07596084]
[1773470419195,0.001,2078.3,2077.7,7.84196084]
[1773470419891,6.49901322,2078.3,2077.7,1.766]
[1773470420198,0.001,2078.3,2077.7,7.84196084]
[1773470420789,0.001,2078.3,2077.7,9.0451704]
[1773470420989,6.49801322,2077.9,2076.6,40.89129285]
[1773470421169,6.37136045,2077.8,2076.4,7.22784702]
[1773470421376,6.37136045,2077.8,2076.5,0.03600183]
[1773470421575,6.37136045,2077.8,2076.4,7.22784702]
[1773470421805,6.37136045,2077.8,2076.5,23.168666]
[1773470422400,6.37136045,2077.8,2076.6,0.03599806]
[1773470422566,6.37136045,2077.8,2076.7,7.79084009]
[1773470423270,6.31120067,2077.6,2076.5,13.658258]
[1773470423576,6.37136624,2077.6,2076.5,13.658258]
[1773470423897,6.31120067,2077.4,2076.2,1.767]
[1773470424606,6.31120067,2076.2,2075.2,0.0011]
[1773470424809,6.31120067,2075.8,2075.2,0.0011]
[1773470425177,6.31120067,2075.5,2075.1,0.0011]
[1773470427083,6.31120067,2075.3,2075.1,0.0011]
[1773470428495,1.20435494,2075.8,2075.1,0.0022]
[1773470428694,1.20435494,2075.8,2075.1,0.0011]
[1773470429009,1.20435494,2075.8,2075.1,0.0022]
[1773470429208,7.51555561,2075.8,2075.1,0.0022]
[1773470429386,6.31120067,2075.8,2075.1,0.0011]
[1773470429588,6.31120067,2075.8,2075.3,0.0011]
[1773470430007,6.31120067,2075.8,2075.4,0.0011]
[1773470430191,6.31120067,2075.8,2075.3,0.0011]
[1773470430686,6.31120067,2075.8,2075.4,0.0011]
[1773470430887,6.31120067,2075.8,2075.3,0.0011]
[1773470431092,6.31120067,2075.8,2075.4,0.0011]
[1773470431290,6.31120067,2075.4,2073.9,0.77807612]
[1773470431492,6.31120067,2074.4,2073.0,2.20595129]
[1773470431691,1.90272867,2075.2,2073.0,2.20595129]
[1773470431692,6.31120067,2074.2,2073.0,1.0]
[1773470431892,0.065536,2074.5,2072.4,0.2]
[1773470431893,6.31120067,2073.8,2072.4,0.2]
[1773470432078,6.31120067,2073.8,2071.0,0.00838456]
[1773470432079,6.31120067,2073.4,2071.0,0.00838456]
[1773470432285,2.62811353,2073.9,2069.6,0.32693113]
[1773470432286,6.31120067,2071.5,2069.6,0.32693113]
[1773470432484,6.31120067,2071.0,2069.5,6.02384009]
[1773470432720,6.31120067,2071.4,2069.7,9.55281309]
[1773470432925,6.31120067,2070.8,2069.0,1.20831319]
[1773470433182,6.31120067,2069.9,2069.0,1.20831319]
[1773470433402,6.31120067,2070.3,2069.0,30.0]
[1773470433606,6.31120067,2070.8,2069.4,6.02384009]
[1773470433809,2.11772409,2071.6,2069.8,8.089784]
[1773470433810,6.31120067,2071.4,2069.8,8.089784]
[1773470434115,2.17854776,2071.4,2070.1,6.02384009]
[1773470434319,6.31120067,2071.3,2069.6,16.00293509]
[1773470434504,6.31120067,2071.3,2069.8,11.540434]
[1773470434827,6.31120067,2071.1,2069.3,27.484371]
[1773470434993,6.31120067,2071.1,2069.5,33.68013109]
[1773470435187,2.17854776,2071.4,2069.9,1.20778781]
[1773470435506,0.2509,2071.6,2070.6,1.86682409]
[1773470435697,7.5174855,2072.5,2071.1,27.939118]
[1773470436019,5.30563237,2072.5,2071.0,1.651]
[1773470436228,5.30563237,2072.5,2070.6,6.02384009]
[1773470436430,5.30562759,2072.5,2070.7,18.93240009]
[1773470436711,0.30776007,2073.1,2072.3,6.02384009]
[1773470436892,1.44565255,2075.2,2072.1,2.70287876]
[1773470436893,6.31120067,2075.9,2072.9,6.02384009]
[1773470437093,6.31120067,2075.1,2073.3,6.02384009]
[1773470437294,6.31120067,2075.1,2073.2,15.777736]
[1773470437295,0.06023515,2075.2,2073.7,18.741716]
[1773470437509,0.06023806,2075.1,2073.9,2.953264]
[1773470437709,6.37143002,2075.4,2073.7,5.047423]
[1773470437912,6.31120067,2075.3,2073.8,9.818596]
[1773470438113,6.37143292,2075.3,2073.8,4.626772]
[1773470438313,0.06023515,2075.2,2073.8,4.626772]
[1773470438490,0.06022064,2075.7,2073.8,4.626772]
[1773470438690,6.31120067,2075.4,2073.8,3.670923]
[1773470438897,6.37143292,2075.3,2073.8,3.670923]
[1773470439109,0.06023225,2075.3,2073.8,9.69476309]
[1773470439310,1.20447099,2075.6,2074.1,1.20534207]
[1773470439526,0.06022645,2075.5,2074.1,1.20534207]
[1773470440112,0.06022645,2075.5,2074.2,2.952]
[1773470440706,6.37142712,2075.5,2073.4,6.02384009]
[1773470440912,6.37142712,2075.5,2074.0,19.631162]
[1773470441144,6.37142712,2075.5,2074.0,18.725951]
[1773470441459,0.06022354,2075.6,2074.3,6.02384009]
[1773470441603,0.06021484,2075.9,2074.4,26.235188]
[1773470441944,0.06021484,2075.9,2074.4,23.669515]
[1773470442308,1.86682409,2076.4,2074.5,6.02384009]
[1773470442509,0.06020324,2076.3,2074.8,30.0]
[1773470442741,0.06020324,2076.3,2075.1,6.8678]
[1773470442918,6.37139811,2076.5,2075.2,10.882217]
[1773470443120,0.06019744,2076.5,2075.2,10.882217]
[1773470443644,1.20400693,2076.4,2075.3,1.20464511]
[1773470443839,0.06020324,2076.3,2075.3,1.20464511]
[1773470444435,0.06020034,2076.4,2074.9,6.02384009]
[1773470444741,0.06020034,2076.4,2074.5,4.82037535]
[1773470444742,6.31120067,2076.3,2074.7,8.174598]
[1773470444945,6.37140681,2076.2,2074.7,8.174598]
[1773470445111,6.27140681,2076.2,2074.7,8.174598]
[1773470445305,0.06020904,2076.1,2074.7,8.174598]
[1773470445514,1.26442879,2076.1,2074.9,15.427797]
[1773470445725,0.06020904,2076.1,2074.9,21.45163709]
[1773470445909,7.57528618,2076.6,2075.0,2.952]
[1773470446303,7.57528618,2076.6,2074.9,11.678642]
[1773470446544,6.31120067,2076.3,2074.7,1.20495965]
[1773470446761,5.98048671,2075.7,2074.4,1.20512449]
[1773470446971,5.98048671,2075.5,2073.6,7.66343708]
[1773470447130,5.98048671,2075.5,2073.8,27.08775337]
[1773470447327,0.06022935,2075.4,2074.0,18.122678]
[1773470447660,1.20464511,2075.3,2074.1,1.20534207]
[1773470447828,6.04072186,2075.2,2074.0,1.20537507]
[1773470448249,6.04072186,2075.2,2073.9,1.20541611]
[1773470448930,0.06023515,2075.2,2074.0,0.048216]
[1773470449268,0.06023515,2075.2,2074.0,6.9184]
[1773470449432,0.06023515,2075.2,2074.1,12.678507]
[1773470449756,1.26493344,2075.3,2074.3,1.20522585]
[1773470450097,7.24542015,2075.3,2073.9,18.481292]
[1773470450396,0.06023515,2075.2,2074.0,30.0]
[1773470450572,1.2046178,2075.4,2074.1,9.86871368]
[1773470450733,1.20456863,2075.5,2074.0,36.45780437]
[1773470450933,0.06022935,2075.4,2074.1,14.765972]
[1773470451166,6.55804981,2075.4,2074.1,8.8561]
[1773470451454,6.55804981,2075.4,2074.2,0.04821135]
[1773470451660,6.49782046,2075.2,2074.0,1.20540019]
[1773470451866,7.70232642,2075.6,2074.1,36.52471009]
[1773470452161,0.06022645,2075.5,2074.2,30.0]
[1773470453670,1.26479425,2075.5,2074.4,1.20516775]
[1773470453968,0.06022645,2075.5,2074.5,1.84020438]
[1773470454154,1.26479553,2075.5,2074.5,1.792]
[1773470454357,0.06022645,2075.5,2074.6,3.59487706]
[1773470454669,1.26469759,2075.6,2074.6,0.04820206]
[1773470454862,0.06022645,2075.5,2074.5,1.792]
[1773470455038,0.06022645,2075.5,2074.7,0.0011]
[1773470455438,6.55804691,2075.5,2074.7,0.0011]
[1773470455673,7.76263177,2075.5,2074.7,0.0011]
[1773470460656,0.06022645,2075.5,2074.7,6.47759641]
[1773470460974,0.06022064,2075.7,2074.8,0.04819741]
[1773470461145,6.5580411,2075.7,2074.7,0.0011]
[1773470461345,6.5580411,2075.7,2074.7,0.04929973]
[1773470461541,6.49782046,2075.6,2074.7,0.0011]
[1773470461748,6.49782046,2075.6,2074.5,0.0011]
[1773470461749,6.49782046,2075.3,2074.5,0.0011]
[1773470462173,2.357,2075.6,2074.5,0.0011]
[1773470462174,7.70258167,2075.1,2074.5,0.0011]
[1773470462507,6.49782046,2074.8,2073.1,11.30013241]
[1773470462775,0.06024096,2075.0,2073.4,6.47649641]
[1773470462776,6.49782046,2074.6,2073.4,6.47649641]
[1773470463072,6.49782046,2074.6,2073.2,1.20586532]
[1773470463073,1.20476121,2075.1,2073.8,6.47649641]
[1773470463276,0.06024096,2075.0,2073.9,6.47649641]
[1773470464350,1.20487734,2074.9,2074.1,1.20534207]
[1773470464680,1.20487734,2074.9,2074.2,0.04821135]
[1773470464864,1.20487734,2074.9,2073.9,1.20542412]
[1773470464865,7.7026978,2074.9,2073.9,1.20542412]
[1773470465069,7.7026978,2074.9,2073.6,4.82245018]
[1773470465256,7.76294166,2074.9,2073.6,4.82245018]
[1773470465773,7.76294166,2074.9,2073.6,1.20563271]
[1773470465951,6.49782046,2074.8,2073.4,1.20574901]
[1773470466264,6.49782046,2074.6,2073.2,4.82299604]
[1773470466466,6.49782046,2074.6,2073.2,1.20586532]
[1773470466963,5.075,2074.4,2073.1,6.47649641]
[1773470467273,6.49782046,2074.3,2072.9,1.20603984]
[1773470467465,6.49782046,2074.1,2072.9,1.20603984]
[1773470467669,6.49782046,2074.6,2073.0,6.47649641]
[1773470468170,6.49782046,2074.6,2072.9,1.20603984]
[1773470468476,6.49782046,2074.6,2072.7,1.20615622]
[1773470468477,6.49782046,2074.2,2072.7,1.20615622]
[1773470468670,1.86682409,2074.3,2072.7,1.20615622]
[1773470468671,6.49782046,2074.0,2072.7,1.20615622]
[1773470468873,5.075,2074.1,2072.7,1.20615622]
[1773470468874,6.49782046,2073.8,2072.7,1.20615622]
[1773470469080,6.49782046,2074.2,2072.9,6.47649641]
[1773470469477,6.49782046,2074.2,2073.0,0.04823926]
[1773470469671,6.49782046,2074.2,2073.5,0.0011]
[1773470470156,7.7631856,2074.5,2073.5,0.0011]
[1773470470976,1.2653935,2074.5,2073.5,0.0011]
[1773470471177,1.2653935,2074.5,2073.5,6.47759641]
[1773470471371,1.2653935,2074.5,2073.5,8.28659641]
[1773470471372,0.06025548,2074.5,2073.5,8.28659641]
[1773470471567,0.06025548,2074.5,2073.6,0.0482253]
[1773470471875,7.70275053,2074.9,2073.6,6.52472171]
[1773470472181,0.06024677,2074.8,2073.7,6.47649641]
[1773470472677,0.06024677,2074.8,2073.8,1.20551644]
[1773470472678,1.20499349,2074.7,2073.8,1.20551644]
[1773470472904,0.06025257,2074.6,2073.8,1.10551644]
[1773470474150,0.06025257,2074.6,2073.9,0.04821833]
[1773470474351,7.76304563,2074.8,2073.6,4.82249107]
[1773470474654,7.76304563,2074.8,2073.7,0.04822298]
[1773470474856,7.70279886,2074.8,2073.6,0.0482253]
[1773470475170,0.06024967,2074.7,2073.6,0.0482253]
[1773470475590,0.06024967,2074.7,2073.6,6.52472171]
[1773470475753,6.55807013,2074.7,2073.5,1.20563271]
[1773470475953,6.55807013,2074.7,2073.6,0.0482253]
[1773470476177,0.06024967,2074.7,2073.6,6.52472171]
[1773470476778,0.06024677,2074.8,2073.8,7.68201285]
[1773470477061,0.06024386,2074.9,2074.0,6.47649641]
[1773470477272,0.06023806,2075.1,2074.0,6.47649641]
[1773470477660,0.06023806,2075.1,2074.0,6.52471241]
[1773470478188,0.06023806,2075.1,2074.0,6.47649641]
[1773470478685,0.06023806,2075.1,2073.8,1.20551644]
[1773470478686,6.49782046,2075.0,2073.8,1.20551644]
[1773470478984,6.49782046,2075.0,2073.7,4.82206577]
[1773470478985,1.2651212,2074.9,2073.9,0.04821833]
[1773470479181,1.2651212,2074.9,2073.8,0.04822065]
[1773470479562,1.2651212,2074.9,2073.8,6.52471706]
[1773470480171,1.20487734,2074.9,2073.8,6.52471706]
[1773470480403,0.06024677,2074.8,2073.8,6.52471706]
[1773470481557,0.001,2075.2,2073.9,7.48537347]
[1773470481757,1.20476121,2075.1,2074.1,6.27991516]
[1773470481985,1.20476121,2075.1,2074.0,0.049316]
[1773470482179,1.20476121,2075.1,2074.0,6.32923116]
[1773470482364,0.001,2074.6,2074.0,6.28101516]
[1773470482888,0.001,2074.6,2074.1,0.04821368]
[1773470483385,0.001,2074.6,2074.0,0.0011]
[1773470483572,1.20510966,2074.5,2074.0,0.0011]
[1773470483777,0.06025838,2074.4,2074.0,0.0011]
[1773470485383,11.15339506,2074.6,2074.0,0.0011]
[1773470485384,0.001,2074.6,2074.0,0.0011]
[1773470486370,0.001,2074.6,2074.0,0.049316]
[1773470488201,0.001,2074.6,2074.1,1.20534207]
[1773470488401,0.001,2074.6,2074.0,0.0011]
[1773470488601,6.33295641,2074.6,2074.0,0.0011]
[1773470488898,6.33295641,2074.6,2073.8,0.0011]
[1773470489414,11.40695641,2074.5,2073.8,0.0011]
[1773470489735,6.33195641,2074.5,2073.8,0.0011]
[1773470490505,1.20516775,2074.4,2073.8,0.0011]
[1773470492406,7.53712416,2074.4,2073.8,0.0011]
[1773470493909,6.33195641,2074.4,2073.8,0.0011]
[1773470494503,7.53716277,2074.4,2073.8,0.0011]
[1773470496221,7.53716277,2074.4,2074.0,0.0011]
[1773470496415,1.20608528,2074.6,2074.0,0.0011]
[1773470496907,5.90056629,2074.5,2073.8,0.0011]
[1773470497984,1.20608528,2074.6,2073.8,0.0011]
[1773470498219,1.20608528,2074.6,2073.8,0.04932065]
[1773470498518,0.001,2074.6,2073.8,7.1568257]
[1773470499528,0.001,2074.6,2073.8,5.95135593]
[1773470499709,0.001,2074.6,2073.8,7.15686347]
[1773470500323,0.001,2074.6,2073.8,7.10864282]
[1773470500924,0.001,2074.6,2073.9,0.04821833]
[1773470502830,5.90156629,2074.6,2073.8,0.0011]
[1773470503196,5.90156629,2074.6,2073.8,1.20661377]
[1773470503397,5.90156629,2074.6,2073.9,0.04821833]
[1773470504706,5.90156629,2074.6,2073.8,0.0011]